fUSD/lending_fUSD_20260521
["ID","MTS","AMOUNT","RATE_DAILY","PERIOD"]
[422738855,1779340352000,-1126.81,0.00039873,120]
[422738858,1779340352000,-1126.81,0.00039873,120]
[422738859,1779340352000,-1126.81,0.00039873,120]
[422738860,1779340352000,-1127.03493979,0.00039873,120]
[422738861,1779340352000,-500.0,0.00039873,120]
[422738862,1779340352000,-500.0,0.00039873,120]
[422738863,1779340352000,-500.0,0.00039873,120]
[422738864,1779340352000,-504.42624065,0.00039873,120]
[422738865,1779340352000,-192.08366974,0.00039873,120]
[422738857,1779340352000,-1126.81,0.00039873,120]
[422738873,1779340353000,-500.0,0.00039873,120]
[422738872,1779340353000,-500.0,0.00039873,120]
[422738870,1779340353000,-200.0,0.00039873,120]
[422738874,1779340353000,-500.0,0.00039873,120]
[422738868,1779340353000,-203.28503567,0.00039873,120]
[422738867,1779340353000,-498.06866491,0.00039873,120]
[422738866,1779340353000,-192.08366974,0.00039873,120]
[422738869,1779340353000,-314.85,0.00039873,120]
[422738875,1779340353000,-500.0,0.00039873,120]
[422738871,1779340353000,-500.0,0.00039873,120]
[422738878,1779340353000,-500.0,0.00039873,120]
[422738884,1779340353000,-604.33658219,0.00039873,120]
[422738883,1779340353000,-500.0,0.00039873,120]
[422738882,1779340353000,-53610.39,0.00039873,120]
[422738881,1779340353000,-203.89633841,0.00039873,120]
[422738876,1779340353000,-500.0,0.00039873,120]
[422738880,1779340353000,-500.0,0.00039873,120]
[422738885,1779340353000,-500.0,0.00039873,120]
[422738877,1779340353000,-500.0,0.00039873,120]
[422738879,1779340353000,-500.0,0.00039873,120]
[422738894,1779340354000,-568.73738425,0.00039873,120]
[422738886,1779340354000,-536.37687141,0.00039873,120]
[422738888,1779340354000,-568.73738425,0.00039873,120]
[422738890,1779340354000,-568.73738425,0.00039873,120]
[422738889,1779340354000,-568.73738425,0.00039873,120]
[422738891,1779340354000,-568.73738425,0.00039873,120]
[422738892,1779340354000,-568.73738425,0.00039873,120]
[422738893,1779340354000,-568.73738425,0.00039873,120]
[422738895,1779340354000,-568.73738425,0.00039873,120]
[422738887,1779340354000,-568.73738425,0.00039873,120]
[422738898,1779340354000,-568.73738425,0.00039873,120]
[422738897,1779340354000,-568.73738425,0.00039873,120]
[422738899,1779340354000,-568.73738425,0.00039873,120]
[422738900,1779340354000,-568.73738425,0.00039873,120]
[422738901,1779340354000,-568.73738425,0.00039873,120]
[422738902,1779340354000,-2878.1854207,0.00039873,60]
[422738905,1779340354000,-809.82724991,0.00039873,120]
[422738903,1779340354000,-527.17687674,0.00039873,120]
[422738904,1779340354000,-809.82724991,0.00039873,120]
[422738896,1779340354000,-568.73738425,0.00039873,120]
[422738906,1779340355000,-809.82724991,0.00039873,120]
[422738907,1779340355000,-809.82724991,0.00039873,120]
[422738909,1779340355000,-30364.15373266,0.00039873,120]
[422738908,1779340355000,-161.96544998,0.00039873,120]
[422738911,1779340355000,-500.0,0.00039873,120]
[422738910,1779340355000,-25500.0,0.00039873,120]
[422738913,1779340355000,-500.0,0.00039873,120]
[422738915,1779340355000,-500.0,0.00039873,120]
[422738914,1779340355000,-500.0,0.00039873,120]
[422738916,1779340355000,-500.0,0.00039873,120]
[422738918,1779340355000,-500.0,0.00039873,120]
[422738917,1779340355000,-500.0,0.00039873,120]
[422738919,1779340355000,-500.0,0.00039873,120]
[422738912,1779340355000,-500.0,0.00039873,120]
[422738927,1779340356000,-377.61479584,0.00039873,120]
[422738920,1779340356000,-386.70922303,0.00039873,120]
[422738921,1779340356000,-272.72859522,0.00039873,120]
[422738922,1779340356000,-192.35075644,0.00039873,120]
[422738923,1779340356000,-20000.0,0.00039873,120]
[422738924,1779340356000,-227.11856013,0.00039873,120]
[422738925,1779340356000,-191.27825481,0.00039873,120]
[422738926,1779340356000,-377.61479584,0.00039873,120]
[422738928,1779340356000,-377.61479584,0.00039873,120]
[422738934,1779340356000,-377.61479584,0.00039873,120]
[422738930,1779340356000,-377.61479584,0.00039873,120]
[422738931,1779340356000,-377.61479584,0.00039873,120]
[422738932,1779340356000,-377.61479584,0.00039873,120]
[422738933,1779340356000,-377.61479584,0.00039873,120]
[422738935,1779340356000,-377.61479584,0.00039873,120]
[422738938,1779340356000,-377.61479584,0.00039873,120]
[422738937,1779340356000,-377.61479584,0.00039873,120]
[422738936,1779340356000,-377.61479584,0.00039873,120]
[422738929,1779340356000,-377.61479584,0.00039873,120]
[422738946,1779340357000,-377.61479584,0.00039873,120]
[422738944,1779340357000,-377.61479584,0.00039873,120]
[422738945,1779340357000,-377.61479584,0.00039873,120]
[422738939,1779340357000,-377.61479584,0.00039873,120]
[422738943,1779340357000,-377.61479584,0.00039873,120]
[422738940,1779340357000,-377.61479584,0.00039873,120]
[422738941,1779340357000,-377.61479584,0.00039873,120]
[422738942,1779340357000,-377.61479584,0.00039873,120]
[422738949,1779340357000,-377.61479584,0.00039873,120]
[422738947,1779340357000,-377.61479584,0.00039873,120]
[422738951,1779340357000,-377.61479584,0.00039873,120]
[422738950,1779340357000,-377.61479584,0.00039873,120]
[422738952,1779340357000,-377.61479584,0.00039873,120]
[422738953,1779340357000,-377.61479584,0.00039873,120]
[422738955,1779340357000,-299.80326216,0.00039873,120]
[422738954,1779340357000,-377.61479584,0.00039873,120]
[422738956,1779340357000,-299.80326216,0.00039873,120]
[422738958,1779340357000,-299.80326216,0.00039873,120]
[422738957,1779340357000,-299.80326216,0.00039873,120]
[422738948,1779340357000,-377.61479584,0.00039873,120]
[422738966,1779340358000,-299.80326216,0.00039873,120]
[422738965,1779340358000,-299.80326216,0.00039873,120]
[422738963,1779340358000,-299.80326216,0.00039873,120]
[422738964,1779340358000,-299.80326216,0.00039873,120]
[422738967,1779340358000,-299.80326216,0.00039873,120]
[422738962,1779340358000,-299.80326216,0.00039873,120]
[422738960,1779340358000,-299.80326216,0.00039873,120]
[422738959,1779340358000,-299.80326216,0.00039873,120]
[422738961,1779340358000,-299.80326216,0.00039873,120]
[422738968,1779340358000,-299.80326216,0.00039873,120]
[422738975,1779340358000,-579.78642046,0.00039873,120]
[422738969,1779340358000,-299.80326216,0.00039873,120]
[422738979,1779340358000,-500.0,0.00039873,120]
[422738976,1779340358000,-834.58586748,0.00039873,120]
[422738977,1779340358000,-404.92730541,0.00039873,120]
[422738978,1779340358000,-561.0810631,0.00039873,120]
[422738970,1779340358000,-2888.1336561,0.00039873,120]
[422738971,1779340358000,-605.95976723,0.00039873,120]
[422738973,1779340358000,-500.0,0.00039873,120]
[422738972,1779340358000,-10174.29872187,0.00039873,120]
[422738974,1779340358000,-500.0,0.00039873,120]
[422738988,1779340359000,-500.0,0.00039873,120]
[422738981,1779340359000,-500.0,0.00039873,120]
[422738983,1779340359000,-500.0,0.00039873,120]
[422738982,1779340359000,-500.0,0.00039873,120]
[422738984,1779340359000,-500.0,0.00039873,120]
[422738985,1779340359000,-500.0,0.00039873,120]
[422738987,1779340359000,-500.0,0.00039873,120]
[422738986,1779340359000,-500.0,0.00039873,120]
[422738980,1779340359000,-500.0,0.00039873,120]
[422738989,1779340359000,-500.0,0.00039873,120]
[422738992,1779340359000,-500.0,0.00039873,120]
[422738991,1779340359000,-500.0,0.00039873,120]
[422738993,1779340359000,-205.8051986,0.00039873,120]
[422738994,1779340359000,-8750.0,0.00039873,120]
[422738996,1779340359000,-500.0,0.00039873,120]
[422738995,1779340359000,-500.0,0.00039873,120]
[422738998,1779340359000,-445.55172676,0.00039873,120]
[422738997,1779340359000,-500.0,0.00039873,120]
[422738999,1779340359000,-500.0,0.00039873,120]
[422739000,1779340359000,-500.0,0.00039873,120]
[422738990,1779340359000,-500.0,0.00039873,120]
[422739010,1779340360000,-4743.24,0.00039873,120]
[422739007,1779340360000,-4743.24,0.00039873,120]
[422739008,1779340360000,-4743.24,0.00039873,120]
[422739006,1779340360000,-539.65,0.00039873,120]
[422739002,1779340360000,-500.0,0.00039873,120]
[422739003,1779340360000,-500.0,0.00039873,120]
[422739004,1779340360000,-346.86437758,0.00039873,120]
[422739001,1779340360000,-500.0,0.00039873,120]
[422739005,1779340360000,-433.13981,0.00039873,120]
[422739009,1779340360000,-4743.24,0.00039873,120]
[422739012,1779340360000,-4743.24,0.00039873,120]
[422739014,1779340360000,-4743.24,0.00039873,120]
[422739013,1779340360000,-4743.24,0.00039873,120]
[422739015,1779340360000,-4743.24,0.00039873,120]
[422739016,1779340360000,-4743.24,0.00039873,120]
[422739018,1779340360000,-4743.24,0.00039873,120]
[422739017,1779340360000,-4743.24,0.00039873,120]
[422739020,1779340360000,-4743.24,0.00039873,120]
[422739019,1779340360000,-4743.24,0.00039873,120]
[422739021,1779340360000,-4743.24,0.00039873,120]
[422739011,1779340360000,-4743.24,0.00039873,120]
[422739030,1779340361000,-4743.33298111,0.00039873,120]
[422739029,1779340361000,-4743.24,0.00039873,120]
[422739028,1779340361000,-4743.24,0.00039873,120]
[422739027,1779340361000,-4743.24,0.00039873,120]
[422739022,1779340361000,-4743.24,0.00039873,120]
[422739025,1779340361000,-4743.24,0.00039873,120]
[422739024,1779340361000,-4743.24,0.00039873,120]
[422739023,1779340361000,-4743.24,0.00039873,120]
[422739026,1779340361000,-4743.24,0.00039873,120]
[422739031,1779340361000,-290.97102007,0.00039873,120]
[422739032,1779340361000,-273.01032478,0.00039873,120]
[422739035,1779340361000,-11379.624977,0.00039873,120]
[422739033,1779340361000,-18920.15,0.00039873,120]
[422739042,1779340361000,-704.329639,0.00039873,120]
[422739039,1779340361000,-11379.624977,0.00039873,120]
[422739038,1779340361000,-11379.624977,0.00039873,120]
[422739041,1779340361000,-704.329639,0.00039873,120]
[422739037,1779340361000,-11379.624977,0.00039873,120]
[422739036,1779340361000,-11379.624977,0.00039873,120]
[422739034,1779340361000,-11379.624977,0.00039873,120]
[422739040,1779340361000,-11379.624977,0.00039873,120]
[422739047,1779340362000,-6996.89099871,0.00039873,120]
[422739044,1779340362000,-704.329639,0.00039873,120]
[422739043,1779340362000,-704.329639,0.00039873,120]
[422739045,1779340362000,-704.329639,0.00039873,120]
[422739046,1779340362000,-10000.0,0.00039873,120]
[422739048,1779340362000,-704.329639,0.00039873,120]
[422739049,1779340362000,-704.329639,0.00039873,120]
[422739057,1779340362000,-725.503152,0.00039873,120]
[422739052,1779340362000,-169.05932979,0.00039873,90]
[422739051,1779340362000,-500.0,0.00039873,90]
[422739053,1779340362000,-725.503152,0.00039873,120]
[422739054,1779340362000,-178.824456,0.00039873,120]
[422739056,1779340362000,-178.824456,0.00039873,120]
[422739055,1779340362000,-725.503152,0.00039873,120]
[422739050,1779340362000,-500.0,0.00039873,90]
[422739058,1779340363000,178.824456,0.00039873,120]
[422739059,1779340363000,725.503152,0.00039873,120]
[422739060,1779340363000,8917.21501331,0.00039873,60]
[422739061,1779340363000,6918.48834719,0.00039873,60]
[422739063,1779340363000,11920.08482408,0.00039873,60]
[422739062,1779340363000,725.503152,0.00039873,120]
[422739064,1779340363000,725.503152,0.00039873,120]
[422739065,1779340363000,725.503152,0.00039873,120]
[422739066,1779340367000,-5000000.0,0.00039873,30]
[422739067,1779340386000,-5000000.0,0.00039873,30]
[422739068,1779340390000,-3959221.28653783,0.00039873,30]
[422739069,1779340390000,-2075.0,0.00039873,30]
[422739071,1779340390000,-734.07063066,0.00039873,30]
[422739072,1779340390000,-6135.74703437,0.00039873,30]
[422739073,1779340390000,-20000.0,0.00039873,52]
[422739070,1779340390000,-8868.31828282,0.00039873,30]
[422739075,1779340390000,-100000.0,0.00039873,30]
[422739077,1779340390000,-238.44,0.00039873,30]
[422739076,1779340390000,-484.8934972,0.00039873,30]
[422739079,1779340390000,-1000.0,0.00039873,30]
[422739078,1779340390000,-1396.39112251,0.00039873,30]
[422739074,1779340390000,-9992.72773901,0.00039873,30]
[422739095,1779340391000,-315.5423772,0.00039873,30]
[422739094,1779340391000,-758.48137838,0.00039873,30]
[422739096,1779340391000,-654.98226718,0.00039873,30]
[422739097,1779340391000,-466.76153141,0.00039873,30]
[422739090,1779340391000,-50000.0,0.00039873,46]
[422739093,1779340391000,-50000.0,0.00039873,30]
[422739092,1779340391000,-50000.0,0.00039873,48]
[422739091,1779340391000,-50000.0,0.00039873,47]
[422739089,1779340391000,-50000.0,0.00039873,45]
[422739087,1779340391000,-167.39441921,0.00039873,30]
[422739086,1779340391000,-500.0,0.00039873,30]
[422739085,1779340391000,-500.0,0.00039873,30]
[422739083,1779340391000,-500.0,0.00039873,30]
[422739084,1779340391000,-500.0,0.00039873,30]
[422739082,1779340391000,-500.0,0.00039873,30]
[422739081,1779340391000,-500.0,0.00039873,30]
[422739080,1779340391000,-319.59727588,0.00039873,30]
[422739088,1779340391000,-50000.0,0.00039873,43]
[422739098,1779340391000,-1785.99143503,0.00039873,30]
[422739104,1779340391000,-184.29063179,0.00039873,30]
[422739101,1779340391000,-1135.79955848,0.00039873,30]
[422739117,1779340391000,-524.86929906,0.00039873,30]
[422739099,1779340391000,-512.91714262,0.00039873,30]
[422739118,1779340391000,-400.98766386,0.00039873,30]
[422739114,1779340391000,-292.66783497,0.00039873,30]
[422739113,1779340391000,-1136.59027319,0.00039873,30]
[422739115,1779340391000,-830.2684759,0.00039873,30]
[422739116,1779340391000,-1054.01686176,0.00039873,30]
[422739111,1779340391000,-1523.06173074,0.00039873,30]
[422739110,1779340391000,-269.27442626,0.00039873,30]
[422739112,1779340391000,-225.6005606,0.00039873,30]
[422739107,1779340391000,-1065.27889268,0.00039873,30]
[422739108,1779340391000,-168.16209148,0.00039873,30]
[422739106,1779340391000,-436.76419752,0.00039873,30]
[422739105,1779340391000,-3134.96537059,0.00039873,30]
[422739103,1779340391000,-1310.1871847,0.00039873,30]
[422739102,1779340391000,-187.82490988,0.00039873,30]
[422739100,1779340391000,-2101.84315092,0.00039873,30]
[422739109,1779340391000,-228.17900703,0.00039873,30]
[422739130,1779340392000,-166.23502199,0.00039873,30]
[422739134,1779340392000,-157.23066732,0.00039873,30]
[422739133,1779340392000,-1254.34389473,0.00039873,30]
[422739131,1779340392000,-816.98377512,0.00039873,30]
[422739132,1779340392000,-1826.14847755,0.00039873,30]
[422739129,1779340392000,-822.81423651,0.00039873,30]
[422739127,1779340392000,-300.53971408,0.00039873,30]
[422739119,1779340392000,-192.63205108,0.00039873,30]
[422739128,1779340392000,-319.42992967,0.00039873,31]
[422739125,1779340392000,-281.88220373,0.00039873,30]
[422739123,1779340392000,-1155.76037517,0.00039873,30]
[422739121,1779340392000,-269.76484655,0.00039873,30]
[422739122,1779340392000,-510.10451222,0.00039873,30]
[422739124,1779340392000,-781.01012478,0.00039873,30]
[422739120,1779340392000,-548.96148698,0.00039873,30]
[422739136,1779340392000,-27445.54432382,0.00039873,30]
[422739126,1779340392000,-3499.44470925,0.00039873,30]
[422739135,1779340392000,-211.26773657,0.00039873,30]
[422739141,1779340392000,-500.0,0.00039873,54]
[422739139,1779340392000,-421.02,0.00039873,30]
[422739154,1779340392000,-50000.0,0.00039873,55]
[422739153,1779340392000,-50000.0,0.00039873,54]
[422739152,1779340392000,-50000.0,0.00039873,53]
[422739151,1779340392000,-50000.0,0.00039873,52]
[422739150,1779340392000,-50000.0,0.00039873,51]
[422739149,1779340392000,-50000.0,0.00039873,50]
[422739146,1779340392000,-2474.53823328,0.00039873,30]
[422739155,1779340392000,-50000.0,0.00039873,56]
[422739147,1779340392000,-5100.0,0.00039873,38]
[422739148,1779340392000,-50000.0,0.00039873,49]
[422739140,1779340392000,-279.35,0.00039873,30]
[422739138,1779340392000,-4838.49302254,0.00039873,30]
[422739137,1779340392000,-83009.63598536,0.00039873,49]
[422739144,1779340392000,-502.01664934,0.00039873,54]
[422739143,1779340392000,-500.0,0.00039873,54]
[422739142,1779340392000,-500.0,0.00039873,54]
[422739145,1779340392000,-500.0,0.00039873,30]
[422739156,1779340393000,-26475.67322964,0.00039873,57]
[422739159,1779340456000,200.0,5e-05,120]
[422739161,1779340457000,248.06,0.00028,120]
[422739160,1779340457000,372.09,0.000266,120]
[422739162,1779340467000,1687.24083599,0.00028,120]
[422739163,1779340478000,573.24,0.000147,120]
[422739164,1779340484000,1000.0,0.00021,120]
[422739165,1779340486000,590.29383933,0.00028767,120]
[422739168,1779340525000,440.13,0.000266,120]
[422739167,1779340525000,440.13,0.000266,120]
[422739166,1779340525000,440.13,0.000266,120]
[422739170,1779340526000,440.13,0.00028,120]
[422739169,1779340526000,440.13,0.00028,120]
[422739171,1779340570000,2198.0,0.00028767,120]
[422739173,1779340648000,356.27,0.00026027,120]
[422739174,1779340669000,515.91,0.000147,120]
[422739363,1779340700000,3208.00401602,0.00028767,120]
[422739364,1779340700000,2005.24,0.00028767,120]
[422739365,1779340700000,314.0,0.00028767,120]
[422739366,1779340727000,455.3565659,0.0002,120]
[422739367,1779340729000,1496.70851446,0.00028767,120]
[422739370,1779340758000,3537.0,0.00028767,120]
[422739376,1779340803000,227.34,0.00028315,120]
[422739377,1779340825000,840.34034319,0.000226,120]
[422739379,1779340858000,464.32,0.000147,120]
[422739381,1779340872000,1000.0,0.00021,120]
[422739383,1779340875000,-150.0,0.000173,30]
[422739382,1779340875000,-204.90333481,0.000169,30]
[422739385,1779340875000,-450.0,0.0001802,30]
[422739384,1779340875000,-154.03673677,0.000173,30]
[422739386,1779340875000,-153.0,0.000183,30]
[422739388,1779340875000,-1000.0,0.00021,30]
[422739387,1779340875000,-394983.56362551,0.000209,30]
[422739389,1779340875000,-215.20247212,0.00021,30]
[422739390,1779340875000,-215.20247212,0.000216,30]
[422739391,1779340875000,-215.20247212,0.000223,30]
[422739407,1779340876000,-161.77085218,0.00025,60]
[422739406,1779340876000,-2625.45218314,0.00025,30]
[422739405,1779340876000,-384.16733951,0.00024889,60]
[422739404,1779340876000,-163.08130951,0.00024794,30]
[422739409,1779340876000,-157.93338132,0.000251,30]
[422739403,1779340876000,-384.16733951,0.00024747,30]
[422739402,1779340876000,-384.16733951,0.00024606,30]
[422739401,1779340876000,-150.0,0.000238,30]
[422739392,1779340876000,-150.0,0.000225,30]
[422739400,1779340876000,-1000.0,0.00023,30]
[422739398,1779340876000,-177.17,0.00023,115]
[422739396,1779340876000,-407.0,0.00023,30]
[422739395,1779340876000,-10000.0,0.00023,30]
[422739397,1779340876000,-1000.0,0.00023,30]
[422739394,1779340876000,-23111.0,0.00023,30]
[422739393,1779340876000,-1000.0,0.00023,30]
[422739399,1779340876000,-1000.0,0.00023,30]
[422739408,1779340876000,-384.16733951,0.0002503,60]
[422739418,1779340876000,-165.74446167,0.00026411,30]
[422739412,1779340876000,-163.08130951,0.00025124,60]
[422739429,1779340876000,-354.35,0.00027397,31]
[422739426,1779340876000,-165.74446167,0.0002726,30]
[422739428,1779340876000,-185.89041866,0.000273,30]
[422739425,1779340876000,-417.32,0.00027171,30]
[422739427,1779340876000,-185.89041868,0.000273,30]
[422739424,1779340876000,-165.74446167,0.00027123,30]
[422739422,1779340876000,-165.74446167,0.00026849,30]
[422739421,1779340876000,-165.74446167,0.00026685,30]
[422739410,1779340876000,-417.32,0.00025115,30]
[422739420,1779340876000,-165.74446167,0.00026548,30]
[422739419,1779340876000,-417.32,0.00026486,30]
[422739417,1779340876000,-165.74446167,0.00026274,30]
[422739413,1779340876000,-384.16733951,0.00025171,60]
[422739416,1779340876000,-165.74446167,0.0002611,30]
[422739414,1779340876000,-417.32,0.000258,30]
[422739415,1779340876000,-279.76,0.000258,30]
[422739411,1779340876000,-279.76,0.00025115,30]
[422739423,1779340876000,-165.74446167,0.00026986,30]
[422739441,1779340877000,-740.0,0.00027917,30]
[422739442,1779340877000,-1320.58,0.0002795,30]
[422739444,1779340877000,-1499.43,0.00027953,30]
[422739443,1779340877000,-2032.22,0.0002795,30]
[422739446,1779340877000,-716.01,0.00027953,30]
[422739439,1779340877000,-2047.33,0.00027915,30]
[422739440,1779340877000,-716.01,0.00027915,30]
[422739437,1779340877000,-2032.22,0.00027911,30]
[422739434,1779340877000,-417.32,0.00027857,30]
[422739436,1779340877000,-1320.58,0.00027911,30]
[422739435,1779340877000,-1074.02,0.00027857,30]
[422739432,1779340877000,-582.48,0.00027857,30]
[422739433,1779340877000,-1110.0,0.00027857,30]
[422739430,1779340877000,-57728.93448285,0.000274,30]
[422739431,1779340877000,-6068.35085239,0.000274,30]
[422739445,1779340877000,-2047.33,0.00027953,30]
[422739438,1779340877000,-1499.43,0.00027915,30]
[422739448,1779340877000,-1320.58,0.00027988,30]
[422739447,1779340877000,-740.0,0.00027955,30]
[422739449,1779340877000,-2032.22,0.00027988,30]
[422739465,1779340877000,-186.5,0.00028032,30]
[422739462,1779340877000,-2047.33,0.00028028,30]
[422739464,1779340877000,-740.0,0.0002803,30]
[422739463,1779340877000,-716.01,0.00028028,30]
[422739461,1779340877000,-1499.43,0.00028028,30]
[422739460,1779340877000,-2032.22,0.00028027,30]
[422739458,1779340877000,-278.21,0.00028015,30]
[422739459,1779340877000,-1320.58,0.00028027,30]
[422739466,1779340877000,-278.21,0.00028035,30]
[422739456,1779340877000,-1016.62,0.00028,30]
[422739455,1779340877000,-2072.85511855,0.00028,30]
[422739453,1779340877000,-740.0,0.00027992,30]
[422739454,1779340877000,-124514.22854957,0.00028,30]
[422739451,1779340877000,-2047.33,0.00027991,30]
[422739452,1779340877000,-716.01,0.00027991,30]
[422739450,1779340877000,-1499.43,0.00027991,30]
[422739457,1779340877000,-186.5,0.00028011,30]
[422739480,1779340878000,-2047.33,0.00028104,30]
[422739481,1779340878000,-716.01,0.00028104,30]
[422739479,1779340878000,-1499.43,0.00028104,30]
[422739478,1779340878000,-278.21,0.00028096,30]
[422739477,1779340878000,-186.5,0.00028095,30]
[422739476,1779340878000,-278.21,0.00028076,30]
[422739475,1779340878000,-186.5,0.00028074,30]
[422739471,1779340878000,-1499.43,0.00028066,30]
[422739474,1779340878000,-740.0,0.00028067,30]
[422739470,1779340878000,-2032.22,0.00028065,30]
[422739472,1779340878000,-2047.33,0.00028066,30]
[422739469,1779340878000,-1320.58,0.00028065,30]
[422739468,1779340878000,-278.21,0.00028055,30]
[422739467,1779340878000,-186.5,0.00028053,30]
[422739482,1779340878000,-1320.58,0.00028104,30]
[422739473,1779340878000,-716.01,0.00028066,30]
[422739483,1779340878000,-2032.22,0.00028104,30]
[422739484,1779340878000,-740.0,0.00028105,30]
[422739485,1779340878000,-278.21,0.00028116,30]
[422739501,1779340878000,-1000.0,0.00028767,120]
[422739498,1779340878000,-1000.0,0.00028767,120]
[422739500,1779340878000,-1000.0,0.00028767,120]
[422739499,1779340878000,-1000.0,0.00028767,120]
[422739496,1779340878000,-1000.0,0.00028767,120]
[422739497,1779340878000,-1000.0,0.00028767,120]
[422739494,1779340878000,-1000.0,0.00028767,120]
[422739495,1779340878000,-1000.0,0.00028767,120]
[422739490,1779340878000,-1016.62,0.00028682,30]
[422739491,1779340878000,-25000.0,0.000287,30]
[422739493,1779340878000,-221.8,0.00028767,115]
[422739488,1779340878000,-1016.62,0.00028455,30]
[422739489,1779340878000,-417.32,0.00028542,30]
[422739486,1779340878000,-186.5,0.00028116,30]
[422739487,1779340878000,-1016.62,0.00028227,30]
[422739492,1779340878000,-150.0,0.00028767,30]
[422739511,1779340879000,-159.0,0.00029,30]
[422739517,1779340879000,-1016.62,0.00029136,30]
[422739516,1779340879000,-227.34,0.00029055,120]
[422739515,1779340879000,-5370.0,0.00029,120]
[422739514,1779340879000,-165.2109,0.00029,120]
[422739512,1779340879000,-2500.0,0.00029,30]
[422739513,1779340879000,-1180.518,0.00029,120]
[422739509,1779340879000,-498.3,0.00028895,30]
[422739520,1779340879000,-3564.56820639,0.000295,40]
[422739508,1779340879000,-1000.0,0.00028767,120]
[422739506,1779340879000,-1000.0,0.00028767,120]
[422739505,1779340879000,-1267.0,0.00028767,120]
[422739507,1779340879000,-1000.0,0.00028767,120]
[422739504,1779340879000,-1000.0,0.00028767,120]
[422739503,1779340879000,-1000.0,0.00028767,120]
[422739518,1779340879000,-1016.62,0.00029364,30]
[422739510,1779340879000,-1016.62,0.00028909,30]
[422739502,1779340879000,-1000.0,0.00028767,120]
[422739522,1779340879000,-2685.61300742,0.000295,40]
[422739519,1779340879000,-927.70260948,0.000295,40]
[422739537,1779340879000,-1016.62,0.00029818,30]
[422739536,1779340879000,-227.34,0.00029795,120]
[422739535,1779340879000,-1000.0,0.0002977,120]
[422739534,1779340879000,-1016.62,0.00029591,30]
[422739533,1779340879000,-513.79,0.00029534,30]
[422739521,1779340879000,-3038.53995701,0.000295,40]
[422739531,1779340879000,-6000.12232016,0.000295,120]
[422739529,1779340879000,-4209.70539534,0.000295,40]
[422739532,1779340879000,-597.09,0.00029533,30]
[422739526,1779340879000,-3655.79904846,0.000295,40]
[422739527,1779340879000,-3932.75222184,0.000295,40]
[422739528,1779340879000,-3418.26018939,0.000295,40]
[422739523,1779340879000,-1806.65780845,0.000295,40]
[422739525,1779340879000,-1716.92724889,0.000295,40]
[422739524,1779340879000,-3605.75172589,0.000295,40]
[422739530,1779340879000,-4486.65856884,0.000295,40]
[422739547,1779340880000,-565.0,0.00029938,30]
[422739552,1779340880000,-400.0,0.0003,120]
[422739551,1779340880000,-386.0,0.0003,120]
[422739549,1779340880000,-4004.0,0.0003,30]
[422739548,1779340880000,-161.0,0.00029938,30]
[422739550,1779340880000,-170.5347257,0.0003,120]
[422739546,1779340880000,-485.0,0.00029938,30]
[422739554,1779340880000,-500.0,0.0003,120]
[422739545,1779340880000,-651.0,0.00029937,30]
[422739543,1779340880000,-358.0,0.00029937,30]
[422739542,1779340880000,-288.0,0.00029937,30]
[422739541,1779340880000,-343.0,0.00029937,30]
[422739539,1779340880000,-258.0,0.00029937,30]
[422739538,1779340880000,-4765.7435614,0.00029844,43]
[422739544,1779340880000,-1787.0,0.00029937,30]
[422739553,1779340880000,-500.0,0.0003,120]
[422739540,1779340880000,-154.0,0.00029937,30]
[422739555,1779340880000,-500.0,0.0003,120]